Workbook

Sheet 目录
A1: 目录
A3: 附表-1 | B3: 部门预算收支总表
A4: 附表-2 | B4: 部门预算收入总表
A5: 附表-3 | B5: 部门预算支出总表
A6: 附表-4 | B6: 部门预算财政拨款收支总表
A7: 附表-5 | B7: 部门预算一般公共预算财政拨款支出表
A8: 附表-6 | B8: 部门预算一般公共预算财政拨款基本支出表
A9: 附表-7 | B9: 部门预算政府性基金预算财政拨款支出表
A10: 附表-8 | B10: 部门预算国有资本经营预算财政拨款支出表
A11: 附表-9 | B11: 部门预算财政拨款“三公”经费支出表

Sheet 附表-1
A1: 部门预算收支总表
A2: 部门编码及名称：[111]农村工作服务中心 | B2: 预算年度：2019 | D2: 预算年度：2019 | E2: 金额单位：万元
A3: 序号 | B3: 收入 | C3: 资金来源 | D3: 支出
A4: 栏次 | B4: 项 目 | C4: 预算数 | D4: 项 目 | E4: 预算数
A5: 栏次 | B5: 1 | C5: 2 | D5: 3 | E5: 4
A6: 6 | B6: 一、财政拨款收入 | C6: 2472.75 | D6: 一、一般公共服务支出 | E6: 0.00
A7: 7 | B7: 二、上级拨款收入 | C7: 0.00 | D7: 二、外交支出 | E7: 0.00
A8: 8 | B8: 三、事业收入 | C8: 0.00 | D8: 三、国防支出 | E8: 0.00
A9: 9 | B9: 其中：财政专户收入 | C9: 0.00 | D9: 四、公共安全支出 | E9: 0.00
A10: 10 | B10: 四、经营收入 | C10: 0.00 | D10: 五、教育支出 | E10: 0.00
A11: 11 | B11: 五、附属单位上缴收入 | C11: 0.00 | D11: 六、科学技术支出 | E11: 0.00
A12: 12 | B12: 六、其他收入 | C12: 0.00 | D12: 七、文化旅游体育与传媒支出 | E12: 0.00
A13: 13 | D13: 八、社会保障和就业支出 | E13: 193.56
A14: 14 | D14: 九、社会保险基金支出 | E14: 0.00
A15: 15 | D15: 十、卫生健康支出 | E15: 43.39
A16: 16 | D16: 十一、节能环保支出 | E16: 120.00
A17: 17 | D17: 十二、城乡社区支出 | E17: 0.00
A18: 18 | D18: 十三、农林水支出 | E18: 2090.34
A19: 19 | D19: 十四、交通运输支出 | E19: 0.00
A20: 20 | D20: 十五、资源勘探信息等支出 | E20: 0.00
A21: 21 | D21: 十六、商业服务业等支出 | E21: 0.00
A22: 22 | D22: 十七、金融支出 | E22: 0.00
A23: 23 | D23: 十八、援助其他地区支出 | E23: 0.00
A24: 24 | D24: 十九、自然资源海洋气象等支出 | E24: 0.00
A25: 25 | D25: 二十、住房保障支出 | E25: 25.46
A26: 26 | D26: 二十一、粮油物资储备支出 | E26: 0.00
A27: 27 | D27: 二十二、国有资本经营预算支出 | E27: 0.00
A28: 28 | D28: 二十三、灾害防治及应急管理支出 | E28: 0.00
A29: 29 | D29: 二十四、预备费 | E29: 0.00
A30: 30 | D30: 二十五、其他支出 | E30: 0.00
A31: 31 | D31: 二十六、转移性支出 | E31: 0.00
A32: 32 | D32: 二十七、债务还本支出 | E32: 0.00
A33: 33 | D33: 二十八、债务付息支出 | E33: 0.00
A34: 34 | D34: 二十九、债务发行费用支出 | E34: 0.00
A35: 35 | B35: 本年收入合计 | C35: 2472.75 | D35: 本年支出合计 | E35: 2472.75
A36: 36 | B36: 用事业基金弥补收支差额 | C36: 0.00 | D36: 结余分配 | E36: 0.00
A37: 37 | B37: 年初结转和结余 | C37: 0.00 | D37: 年末结转和结余 | E37: 0.00
A38: 38 | B38: 合计 | C38: 2472.75 | D38: 合计 | E38: 2472.75

Sheet 附表-2
A1: 部门预算收入总表 | B1: ="" ->  | C1: ="" ->  | D1: ="" ->  | E1: ="" ->  | F1: ="" ->  | G1: ="" ->  | H1: ="" ->  | I1: ="" ->  | J1: ="" ->  | K1: ="" -> 
A2: 部门编码及名称：[111]农村工作服务中心 | B2: ="" ->  | C2: ="" ->  | D2: ="" ->  | E2: ="" ->  | F2: 年度： | G2: ="" ->  | H2: 预算年度：2019 | I2: ="" ->  | J2: 金额单位：万元 | K2: ="" -> 
A3: 序号 | B3: 科目 | C3: ="" ->  | D3: 本年收入合计 | E3: 财政拨款收入 | F3: 上级补助收入 | G3: 事业收入 | H3: ="" ->  | I3: 经营收入 | J3: 附属单位上缴收入 | K3: 其他收入
A4: 栏次 | B4: 功能分类科目编码 | C4: 科目名称 | D4: ="" ->  | E4: 小计 | F4: 事业费限额 | G4: 小计 | H4: 其中：财政专户收入 | I4: ="" ->  | J4: ="" ->  | K4: 其他来源收入
A5: 栏次 | B5: 1 | C5: 2 | D5: 3 | E5: 4 | F5: 5 | G5: 6 | H5: 7 | I5: 8 | J5: 9 | K5: 10
A6: =ROW() -> 6 | C6: 合计 | D6: =D7+D15+D19+D22+D38 -> 2472.75 | E6: =E7+E15+E19+E22+E38 -> 2472.75 | F6: 0.00 | G6: 0.00 | H6: 0.00 | I6: 0.00 | J6: 0.00 | K6: 0.00
A7: =ROW() -> 7 | B7: 208 | C7: 社会保障和就业支出 | D7: =E7 -> 193.56 | E7: =E8+E12 -> 193.56 | F7: 0.00 | G7: 0.00 | H7: 0.00 | I7: 0.00 | J7: 0.00 | K7: 0.00
A8: =ROW() -> 8 | B8: 20805 | C8: 行政事业单位离退休 | D8: 107.28 | E8: 107.28 | F8: 0.00 | G8: 0.00 | H8: 0.00 | I8: 0.00 | J8: 0.00 | K8: 0.00
A9: =ROW() -> 9 | B9: 2080502 | C9: 事业单位离退休 | D9: 47.86 | E9: 47.86 | F9: 0.00 | G9: 0.00 | H9: 0.00 | I9: 0.00 | J9: 0.00 | K9: 0.00
A10: =ROW() -> 10 | B10: 2080505 | C10: 机关事业单位基本养老保险缴费支出★ | D10: 42.43 | E10: 42.43 | F10: 0.00 | G10: 0.00 | H10: 0.00 | I10: 0.00 | J10: 0.00 | K10: 0.00
A11: =ROW() -> 11 | B11: 2080506 | C11: 机关事业单位职业年金缴费支出★ | D11: 16.99 | E11: 16.99 | F11: 0.00 | G11: 0.00 | H11: 0.00 | I11: 0.00 | J11: 0.00 | K11: 0.00
B12: 20822 | C12: 大中型水库移民后期扶持专项支出 | D12: =E12 -> 86.28 | E12: =E13+E14 -> 86.28 | F12: 0.00 | G12: 0.00 | H12: 0.00 | I12: 0.00 | J12: 0.00 | K12: 0.00
A13: 12 | B13: 2082201 | C13: 移民补助 | D13: =E13 -> 53.76 | E13: 53.76 | F13: 0.00 | G13: 0.00 | H13: 0.00 | I13: 0.00 | J13: 0.00 | K13: 0.00
A14: 13 | B14: 2082202 | C14: 基础设施建设和经济发展 | D14: =E14 -> 32.52 | E14: 32.52 | F14: 0.00 | G14: 0.00 | H14: 0.00 | I14: 0.00 | J14: 0.00 | K14: 0.00
A15: =ROW() -> 15 | B15: 210 | C15: 卫生健康支出 | D15: 43.39 | E15: 43.39 | F15: 0.00 | G15: 0.00 | H15: 0.00 | I15: 0.00 | J15: 0.00 | K15: 0.00
A16: =ROW() -> 16 | B16: 21011 | C16: 行政事业单位医疗 | D16: 43.39 | E16: 43.39 | F16: 0.00 | G16: 0.00 | H16: 0.00 | I16: 0.00 | J16: 0.00 | K16: 0.00
A17: =ROW() -> 17 | B17: 2101101 | C17: 行政单位医疗 | D17: 1.09 | E17: 1.09 | F17: 0.00 | G17: 0.00 | H17: 0.00 | I17: 0.00 | J17: 0.00 | K17: 0.00
A18: =ROW() -> 18 | B18: 2101102 | C18: 事业单位医疗 | D18: 42.30 | E18: 42.30 | F18: 0.00 | G18: 0.00 | H18: 0.00 | I18: 0.00 | J18: 0.00 | K18: 0.00
A19: =ROW() -> 19 | B19: 211 | C19: 节能环保支出 | D19: 120.00 | E19: 120.00 | F19: 0.00 | G19: 0.00 | H19: 0.00 | I19: 0.00 | J19: 0.00 | K19: 0.00
A20: =ROW() -> 20 | B20: 21103 | C20: 污染防治 | D20: 120.00 | E20: 120.00 | F20: 0.00 | G20: 0.00 | H20: 0.00 | I20: 0.00 | J20: 0.00 | K20: 0.00
A21: =ROW() -> 21 | B21: 2110301 | C21: 大气 | D21: 120.00 | E21: 120.00 | F21: 0.00 | G21: 0.00 | H21: 0.00 | I21: 0.00 | J21: 0.00 | K21: 0.00
A22: =ROW() -> 22 | B22: 213 | C22: 农林水支出 | D22: =D23+D32+D34+D36 -> 2090.34 | E22: =D22 -> 2090.34 | F22: 0.00 | G22: 0.00 | H22: 0.00 | I22: 0.00 | J22: 0.00 | K22: 0.00
A23: =ROW() -> 23 | B23: 21301 | C23: 农业 | D23: =E23 -> 1364.94 | E23: =E24+E25+E26+E27+E28+E29+E30+E31 -> 1364.94 | F23: 0.00 | G23: 0.00 | H23: 0.00 | I23: 0.00 | J23: 0.00 | K23: 0.00
A24: =ROW() -> 24 | B24: 2130104 | C24: 事业运行 | D24: 426.94 | E24: 426.94 | F24: 0.00 | G24: 0.00 | H24: 0.00 | I24: 0.00 | J24: 0.00 | K24: 0.00
A25: =ROW() -> 25 | B25: 2130108 | C25: 病虫害控制 | D25: 62.58 | E25: 62.58 | F25: 0.00 | G25: 0.00 | H25: 0.00 | I25: 0.00 | J25: 0.00 | K25: 0.00
A26: =ROW() -> 26 | B26: 2130109 | C26: 农产品质量安全 | D26: 2.00 | E26: 2.00 | F26: 0.00 | G26: 0.00 | H26: 0.00 | I26: 0.00 | J26: 0.00 | K26: 0.00
A27: =ROW() -> 27 | B27: 2130110 | C27: 执法监管 | D27: 4.82 | E27: 4.82 | F27: 0.00 | G27: 0.00 | H27: 0.00 | I27: 0.00 | J27: 0.00 | K27: 0.00
A28: =ROW() -> 28 | B28: 2130111 | C28: 统计监测与信息服务 | D28: 11.90 | E28: 11.90 | F28: 0.00 | G28: 0.00 | H28: 0.00 | I28: 0.00 | J28: 0.00 | K28: 0.00
A29: =ROW() -> 29 | B29: 2130112 | C29: 农业行业业务管理 | D29: 40.00 | E29: 40.00 | F29: 0.00 | G29: 0.00 | H29: 0.00 | I29: 0.00 | J29: 0.00 | K29: 0.00
A30: =ROW() -> 30 | B30: 2130122 | C30: 农业生产支持补贴 | D30: =E30 -> 659.50 | E30: 659.50 | F30: 0.00 | G30: 0.00 | H30: 0.00 | I30: 0.00 | J30: 0.00 | K30: 0.00
A31: =ROW() -> 31 | B31: 2130199 | C31: 其他农业支出 | D31: =E31 -> 157.20 | E31: 157.20 | F31: 0.00 | G31: 0.00 | H31: 0.00 | I31: 0.00 | J31: 0.00 | K31: 0.00
A32: =ROW() -> 32 | B32: 21302 | C32: 林业和草原 | D32: 665.00 | E32: 665.00 | F32: 0.00 | G32: 0.00 | H32: 0.00 | I32: 0.00 | J32: 0.00 | K32: 0.00
A33: =ROW() -> 33 | B33: 2130299 | C33: 其他林业支出 | D33: 665.00 | E33: 665.00 | F33: 0.00 | G33: 0.00 | H33: 0.00 | I33: 0.00 | J33: 0.00 | K33: 0.00
A34: =ROW() -> 34 | B34: 21305 | C34: 扶贫 | D34: 50.00 | E34: 50.00 | F34: 0.00 | G34: 0.00 | H34: 0.00 | I34: 0.00 | J34: 0.00 | K34: 0.00
A35: =ROW() -> 35 | B35: 2130599 | C35: 其他扶贫支出 | D35: 50.00 | E35: 50.00 | F35: 0.00 | G35: 0.00 | H35: 0.00 | I35: 0.00 | J35: 0.00 | K35: 0.00
A36: =ROW() -> 36 | B36: 21308 | C36: 普惠金融发展支出 | D36: 10.40 | E36: 10.40 | F36: 0.00 | G36: 0.00 | H36: 0.00 | I36: 0.00 | J36: 0.00 | K36: 0.00
A37: =ROW() -> 37 | B37: 2130803 | C37: 农业保险保费补贴 | D37: 10.40 | E37: 10.40 | F37: 0.00 | G37: 0.00 | H37: 0.00 | I37: 0.00 | J37: 0.00 | K37: 0.00
A38: =ROW() -> 38 | B38: 221 | C38: 住房保障支出 | D38: 25.46 | E38: 25.46 | F38: 0.00 | G38: 0.00 | H38: 0.00 | I38: 0.00 | J38: 0.00 | K38: 0.00
A39: =ROW() -> 39 | B39: 22102 | C39: 住房改革支出 | D39: 25.46 | E39: 25.46 | F39: 0.00 | G39: 0.00 | H39: 0.00 | I39: 0.00 | J39: 0.00 | K39: 0.00
A40: =ROW() -> 40 | B40: 2210201 | C40: 住房公积金 | D40: 25.46 | E40: 25.46 | F40: 0.00 | G40: 0.00 | H40: 0.00 | I40: 0.00 | J40: 0.00 | K40: 0.00

Sheet 附表-3
A1: 部门预算支出总表 | B1: ="" ->  | C1: ="" ->  | D1: ="" ->  | E1: ="" ->  | F1: ="" ->  | G1: ="" ->  | H1: ="" ->  | I1: ="" -> 
A2: 部门编码及名称：[111]农村工作服务中心 | B2: ="" ->  | C2: ="" ->  | D2: ="" ->  | E2: 年度： | F2: 预算年度：2019 | G2: ="" ->  | H2: 金额单位：万元 | I2: ="" -> 
A3: 序号 | B3: 科目 | C3: ="" ->  | D3: 本年支出合计 | E3: 基本支出 | F3: 项目支出 | G3: 上缴上级支出 | H3: 经营支出 | I3: 对附属单位补助支出
A4: 栏次 | B4: 功能分类科目编码 | C4: 科目名称 | D4: ="" ->  | E4: 事业费限额 | F4: 其他 | G4: ="" ->  | H4: ="" ->  | I4: 其他来源收入
A5: 栏次 | B5: 1 | C5: 2 | D5: 3 | E5: 4 | F5: 5 | G5: 6 | H5: 7 | I5: 8
A6: =ROW() -> 6 | C6: 合计 | D6: =E6+F6 -> 2472.75 | E6: =E7+E15+E19+E22+E38 -> 600.57 | F6: =F7+F15+F19+F22+F38 -> 1872.18 | G6: 0.00 | H6: 0.00 | I6: 0.00
A7: =ROW() -> 7 | B7: 208 | C7: 社会保障和就业支出 | D7: =E7+F7 -> 193.56 | E7: 107.28 | F7: =F8+F12 -> 86.28 | G7: 0.00 | H7: 0.00 | I7: 0.00
A8: =ROW() -> 8 | B8: 20805 | C8: 行政事业单位离退休 | D8: 107.28 | E8: 107.28 | F8: 0.00 | G8: 0.00 | H8: 0.00 | I8: 0.00
A9: =ROW() -> 9 | B9: 2080502 | C9: 事业单位离退休 | D9: 47.86 | E9: 47.86 | F9: 0.00 | G9: 0.00 | H9: 0.00 | I9: 0.00
A10: =ROW() -> 10 | B10: 2080505 | C10: 机关事业单位基本养老保险缴费支出★ | D10: 42.43 | E10: 42.43 | F10: 0.00 | G10: 0.00 | H10: 0.00 | I10: 0.00
A11: =ROW() -> 11 | B11: 2080506 | C11: 机关事业单位职业年金缴费支出★ | D11: 16.99 | E11: 16.99 | F11: 0.00 | G11: 0.00 | H11: 0.00 | I11: 0.00
A12: 12 | B12: 20822 | C12: 大中型水库移民后期扶持专项支出 | D12: =F12 -> 86.28 | F12: =F13+F14 -> 86.28
A13: 13 | B13: 2082201 | C13: 移民补助 | D13: =F13 -> 53.76 | F13: 53.76
A14: 14 | B14: 2082202 | C14: 基础设施建设和经济发展 | D14: =F14 -> 32.52 | F14: 32.52
A15: =ROW() -> 15 | B15: 210 | C15: 卫生健康支出 | D15: 43.39 | E15: 43.39 | F15: 0.00 | G15: 0.00 | H15: 0.00 | I15: 0.00
A16: =ROW() -> 16 | B16: 21011 | C16: 行政事业单位医疗 | D16: 43.39 | E16: 43.39 | F16: 0.00 | G16: 0.00 | H16: 0.00 | I16: 0.00
A17: =ROW() -> 17 | B17: 2101101 | C17: 行政单位医疗 | D17: 1.09 | E17: 1.09 | F17: 0.00 | G17: 0.00 | H17: 0.00 | I17: 0.00
A18: =ROW() -> 18 | B18: 2101102 | C18: 事业单位医疗 | D18: 42.30 | E18: 42.30 | F18: 0.00 | G18: 0.00 | H18: 0.00 | I18: 0.00
A19: =ROW() -> 19 | B19: 211 | C19: 节能环保支出 | D19: 120.00 | E19: 0.00 | F19: 120.00 | G19: 0.00 | H19: 0.00 | I19: 0.00
A20: =ROW() -> 20 | B20: 21103 | C20: 污染防治 | D20: 120.00 | E20: 0.00 | F20: 120.00 | G20: 0.00 | H20: 0.00 | I20: 0.00
A21: =ROW() -> 21 | B21: 2110301 | C21: 大气 | D21: 120.00 | E21: 0.00 | F21: 120.00 | G21: 0.00 | H21: 0.00 | I21: 0.00
A22: =ROW() -> 22 | B22: 213 | C22: 农林水支出 | D22: =E22+F22 -> 2090.34 | E22: =E23 -> 424.44 | F22: =F23+F32+F34+F36 -> 1665.90 | G22: 0.00 | H22: 0.00 | I22: 0.00
A23: =ROW() -> 23 | B23: 21301 | C23: 农业 | D23: =E23+F23 -> 1364.94 | E23: 424.44 | F23: =F24+F25+F26+F27+F28+F29+F30+F31 -> 940.50 | G23: 0.00 | H23: 0.00 | I23: 0.00
A24: =ROW() -> 24 | B24: 2130104 | C24: 事业运行 | D24: 426.94 | E24: 424.44 | F24: 2.50 | G24: 0.00 | H24: 0.00 | I24: 0.00
A25: =ROW() -> 25 | B25: 2130108 | C25: 病虫害控制 | D25: 62.58 | E25: 0.00 | F25: 62.58 | G25: 0.00 | H25: 0.00 | I25: 0.00
A26: =ROW() -> 26 | B26: 2130109 | C26: 农产品质量安全 | D26: 2.00 | E26: 0.00 | F26: 2.00 | G26: 0.00 | H26: 0.00 | I26: 0.00
A27: =ROW() -> 27 | B27: 2130110 | C27: 执法监管 | D27: 4.82 | E27: 0.00 | F27: 4.82 | G27: 0.00 | H27: 0.00 | I27: 0.00
A28: =ROW() -> 28 | B28: 2130111 | C28: 统计监测与信息服务 | D28: 11.90 | E28: 0.00 | F28: 11.90 | G28: 0.00 | H28: 0.00 | I28: 0.00
A29: =ROW() -> 29 | B29: 2130112 | C29: 农业行业业务管理 | D29: 40.00 | E29: 0.00 | F29: 40.00 | G29: 0.00 | H29: 0.00 | I29: 0.00
A30: =ROW() -> 30 | B30: 2130122 | C30: 农业生产支持补贴 | D30: =F30 -> 659.50 | E30: 0.00 | F30: 659.50 | G30: 0.00 | H30: 0.00 | I30: 0.00
A31: =ROW() -> 31 | B31: 2130199 | C31: 其他农业支出 | D31: =F31 -> 157.20 | E31: 0.00 | F31: 157.20 | G31: 0.00 | H31: 0.00 | I31: 0.00
A32: =ROW() -> 32 | B32: 21302 | C32: 林业和草原 | D32: 665.00 | E32: 0.00 | F32: 665.00 | G32: 0.00 | H32: 0.00 | I32: 0.00
A33: =ROW() -> 33 | B33: 2130299 | C33: 其他林业支出 | D33: 665.00 | E33: 0.00 | F33: 665.00 | G33: 0.00 | H33: 0.00 | I33: 0.00
A34: =ROW() -> 34 | B34: 21305 | C34: 扶贫 | D34: 50.00 | E34: 0.00 | F34: 50.00 | G34: 0.00 | H34: 0.00 | I34: 0.00
A35: =ROW() -> 35 | B35: 2130599 | C35: 其他扶贫支出 | D35: 50.00 | E35: 0.00 | F35: 50.00 | G35: 0.00 | H35: 0.00 | I35: 0.00
A36: =ROW() -> 36 | B36: 21308 | C36: 普惠金融发展支出 | D36: 10.40 | E36: 0.00 | F36: 10.40 | G36: 0.00 | H36: 0.00 | I36: 0.00
A37: =ROW() -> 37 | B37: 2130803 | C37: 农业保险保费补贴 | D37: 10.40 | E37: 0.00 | F37: 10.40 | G37: 0.00 | H37: 0.00 | I37: 0.00
A38: =ROW() -> 38 | B38: 221 | C38: 住房保障支出 | D38: 25.46 | E38: 25.46 | F38: 0.00 | G38: 0.00 | H38: 0.00 | I38: 0.00
A39: =ROW() -> 39 | B39: 22102 | C39: 住房改革支出 | D39: 25.46 | E39: 25.46 | F39: 0.00 | G39: 0.00 | H39: 0.00 | I39: 0.00
A40: =ROW() -> 40 | B40: 2210201 | C40: 住房公积金 | D40: 25.46 | E40: 25.46 | F40: 0.00 | G40: 0.00 | H40: 0.00 | I40: 0.00

Sheet 附表-4
A1: 部门预算财政拨款收支总表 | B1: ="" ->  | C1: ="" ->  | D1: ="" ->  | E1: ="" ->  | F1: ="" ->  | G1: ="" ->  | H1: ="" -> 
A2: 部门编码及名称：[111]农村工作服务中心 | B2: ="" ->  | C2: ="" ->  | D2: ="" ->  | E2: 预算年度：2019 | F2: ="" ->  | G2: 金额单位：万元 | H2: ="" -> 
A3: 序号 | B3: 收入 | C3: ="" ->  | D3: 支出 | E3: 事业收入 | F3: 经营收入 | G3: 附属单位上缴收入 | H3: 其他收入
A4: 栏次 | B4: 项 目 | C4: 金额 | D4: 项 目 | E4: 合计 | F4: 一般公共预算财政拨款 | G4: 政府性基金预算财政拨款 | H4: 国有资本经营预算财政拨款
A5: 栏次 | B5: 1 | C5: 2 | D5: 3 | E5: 4 | F5: 5 | G5: 6 | H5: 7
A6: =ROW() -> 6 | B6: 一、一般公共预算财政拨款 | C6: 2386.47 | D6: 一、一般公共服务支出 | E6: 0.00 | F6: 0.00 | G6: 0.00 | H6: 0.00
A7: =ROW() -> 7 | B7: 二、政府性基金预算财政拨款 | C7: 86.28 | D7: 二、外交支出 | E7: 0.00 | F7: 0.00 | G7: 0.00 | H7: 0.00
A8: =ROW() -> 8 | B8: 三、国有资本经营预算财政拨款 | C8: 0.00 | D8: 三、国防支出 | E8: 0.00 | F8: 0.00 | G8: 0.00 | H8: 0.00
A9: =ROW() -> 9 | D9: 四、公共安全支出 | E9: 0.00 | F9: 0.00 | G9: 0.00 | H9: 0.00
A10: =ROW() -> 10 | D10: 五、教育支出 | E10: 0.00 | F10: 0.00 | G10: 0.00 | H10: 0.00
A11: =ROW() -> 11 | D11: 六、科学技术支出 | E11: 0.00 | F11: 0.00 | G11: 0.00 | H11: 0.00
A12: =ROW() -> 12 | D12: 七、文化旅游体育与传媒支出 | E12: 0.00 | F12: 0.00 | G12: 0.00 | H12: 0.00
A13: =ROW() -> 13 | D13: 八、社会保障和就业支出 | E13: =F13+G13 -> 193.56 | F13: 107.28 | G13: 86.28 | H13: 0.00
A14: =ROW() -> 14 | D14: 九、社会保险基金支出 | E14: 0.00 | F14: 0.00 | G14: 0.00 | H14: 0.00
A15: =ROW() -> 15 | D15: 十、卫生健康支出 | E15: 43.39 | F15: 43.39 | G15: 0.00 | H15: 0.00
A16: =ROW() -> 16 | D16: 十一、节能环保支出 | E16: 120.00 | F16: 120.00 | G16: 0.00 | H16: 0.00
A17: =ROW() -> 17 | D17: 十二、城乡社区支出 | E17: 0.00 | F17: 0.00 | G17: 0.00 | H17: 0.00
A18: =ROW() -> 18 | D18: 十三、农林水支出 | E18: =F18 -> 2090.34 | F18: 2090.34 | G18: 0.00 | H18: 0.00
A19: =ROW() -> 19 | D19: 十四、交通运输支出 | E19: 0.00 | F19: 0.00 | G19: 0.00 | H19: 0.00
A20: =ROW() -> 20 | D20: 十五、资源勘探信息等支出 | E20: 0.00 | F20: 0.00 | G20: 0.00 | H20: 0.00
A21: =ROW() -> 21 | D21: 十六、商业服务业等支出 | E21: 0.00 | F21: 0.00 | G21: 0.00 | H21: 0.00
A22: =ROW() -> 22 | D22: 十七、金融支出 | E22: 0.00 | F22: 0.00 | G22: 0.00 | H22: 0.00
A23: =ROW() -> 23 | D23: 十八、援助其他地区支出 | E23: 0.00 | F23: 0.00 | G23: 0.00 | H23: 0.00
A24: =ROW() -> 24 | D24: 十九、自然资源海洋气象等支出 | E24: 0.00 | F24: 0.00 | G24: 0.00 | H24: 0.00
A25: =ROW() -> 25 | D25: 二十、住房保障支出 | E25: 25.46 | F25: 25.46 | G25: 0.00 | H25: 0.00
A26: =ROW() -> 26 | D26: 二十一、粮油物资储备支出 | E26: 0.00 | F26: 0.00 | G26: 0.00 | H26: 0.00
A27: =ROW() -> 27 | D27: 二十二、国有资本经营预算支出 | E27: 0.00 | F27: 0.00 | G27: 0.00 | H27: 0.00
A28: =ROW() -> 28 | D28: 二十三、灾害防治及应急管理支出 | E28: 0.00 | F28: 0.00 | G28: 0.00 | H28: 0.00
A29: =ROW() -> 29 | D29: 二十四、预备费 | E29: 0.00 | F29: 0.00 | G29: 0.00 | H29: 0.00
A30: =ROW() -> 30 | D30: 二十五、其他支出 | E30: 0.00 | F30: 0.00 | G30: 0.00 | H30: 0.00
A31: =ROW() -> 31 | D31: 二十六、转移性支出 | E31: 0.00 | F31: 0.00 | G31: 0.00 | H31: 0.00
A32: =ROW() -> 32 | D32: 二十七、债务还本支出 | E32: 0.00 | F32: 0.00 | G32: 0.00 | H32: 0.00
A33: =ROW() -> 33 | D33: 二十八、债务付息支出 | E33: 0.00 | F33: 0.00 | G33: 0.00 | H33: 0.00
A34: =ROW() -> 34 | D34: 二十九、债务发行费用支出 | E34: 0.00 | F34: 0.00 | G34: 0.00 | H34: 0.00
A35: =ROW() -> 35 | B35: 本年收入合计 | C35: 2472.75 | D35: 本年支出合计 | E35: =F35+G35 -> 2472.75 | F35: =F25+F18+F16+F15+F13 -> 2386.47 | G35: =G13 -> 86.28 | H35: 0.00
A36: =ROW() -> 36 | B36: 年初财政拨款结转和结余 | C36: 0.00 | D36: 年末结转和结余 | E36: 0.00 | F36: 0.00 | G36: 0.00 | H36: 0.00
A37: =ROW() -> 37 | B37: 合计 | C37: =C35 -> 2472.75 | D37: 合计 | E37: =F37+G37 -> 2472.75 | F37: =F35 -> 2386.47 | G37: =G35 -> 86.28 | H37: 0.00

Sheet 附表-5
A1: 部门预算一般公共预算财政拨款支出表 | B1: ="" ->  | C1: ="" ->  | D1: ="" ->  | E1: ="" ->  | F1: ="" -> 
A2: 部门编码及名称：[111]农村工作服务中心 | B2: ="" ->  | C2: 预算年度：2019 | D2: ="" ->  | E2: 预算年度：2019 | F2: 金额单位：万元
A3: 序号 | B3: 科目 | C3: ="" ->  | D3: 合计 | E3: 基本支出 | F3: 项目支出
A4: 栏次 | B4: 功能分类科目编码 | C4: 科目名称 | D4: ="" ->  | E4: ="" ->  | F4: 其他来源收入
A5: 栏次 | B5: 1 | C5: 2 | D5: 3 | E5: 4 | F5: 5
A6: =ROW() -> 6 | C6: 合计 | D6: =E6+F6 -> 2386.47 | E6: =E7+E12+E16+E19+E35 -> 600.57 | F6: =F16+F19+F35 -> 1785.90
A7: =ROW() -> 7 | B7: 208 | C7: 社会保障和就业支出 | D7: 107.28 | E7: 107.28 | F7: 0.00
A8: =ROW() -> 8 | B8: 20805 | C8: 行政事业单位离退休 | D8: 107.28 | E8: 107.28 | F8: 0.00
A9: =ROW() -> 9 | B9: 2080502 | C9: 事业单位离退休 | D9: 47.86 | E9: 47.86 | F9: 0.00
A10: =ROW() -> 10 | B10: 2080505 | C10: 机关事业单位基本养老保险缴费支出★ | D10: 42.43 | E10: 42.43 | F10: 0.00
A11: =ROW() -> 11 | B11: 2080506 | C11: 机关事业单位职业年金缴费支出★ | D11: 16.99 | E11: 16.99 | F11: 0.00
A12: =ROW() -> 12 | B12: 210 | C12: 卫生健康支出 | D12: 43.39 | E12: 43.39 | F12: 0.00
A13: =ROW() -> 13 | B13: 21011 | C13: 行政事业单位医疗 | D13: 43.39 | E13: 43.39 | F13: 0.00
A14: =ROW() -> 14 | B14: 2101101 | C14: 行政单位医疗 | D14: 1.09 | E14: 1.09 | F14: 0.00
A15: =ROW() -> 15 | B15: 2101102 | C15: 事业单位医疗 | D15: 42.30 | E15: 42.30 | F15: 0.00
A16: =ROW() -> 16 | B16: 211 | C16: 节能环保支出 | D16: 120.00 | E16: 0.00 | F16: 120.00
A17: =ROW() -> 17 | B17: 21103 | C17: 污染防治 | D17: 120.00 | E17: 0.00 | F17: 120.00
A18: =ROW() -> 18 | B18: 2110301 | C18: 大气 | D18: 120.00 | E18: 0.00 | F18: 120.00
A19: =ROW() -> 19 | B19: 213 | C19: 农林水支出 | D19: =E19+F19 -> 2090.34 | E19: =E20 -> 424.44 | F19: =F20+F29+F31+F33 -> 1665.90
A20: =ROW() -> 20 | B20: 21301 | C20: 农业 | D20: =E20+F20 -> 1364.94 | E20: =E21 -> 424.44 | F20: =F21+F22+F23+F24+F25+F26+F27+F28 -> 940.50
A21: =ROW() -> 21 | B21: 2130104 | C21: 事业运行 | D21: 426.94 | E21: 424.44 | F21: 2.50
A22: =ROW() -> 22 | B22: 2130108 | C22: 病虫害控制 | D22: 62.58 | E22: 0.00 | F22: 62.58
A23: =ROW() -> 23 | B23: 2130109 | C23: 农产品质量安全 | D23: 2.00 | E23: 0.00 | F23: 2.00
A24: =ROW() -> 24 | B24: 2130110 | C24: 执法监管 | D24: 4.82 | E24: 0.00 | F24: 4.82
A25: =ROW() -> 25 | B25: 2130111 | C25: 统计监测与信息服务 | D25: 11.90 | E25: 0.00 | F25: 11.90
A26: =ROW() -> 26 | B26: 2130112 | C26: 农业行业业务管理 | D26: 40.00 | E26: 0.00 | F26: 40.00
A27: =ROW() -> 27 | B27: 2130122 | C27: 农业生产支持补贴 | D27: =F27 -> 659.50 | E27: 0.00 | F27: 659.50
A28: =ROW() -> 28 | B28: 2130199 | C28: 其他农业支出 | D28: =F28 -> 157.20 | E28: 0.00 | F28: 157.20
A29: =ROW() -> 29 | B29: 21302 | C29: 林业和草原 | D29: 665.00 | E29: 0.00 | F29: 665.00
A30: =ROW() -> 30 | B30: 2130299 | C30: 其他林业支出 | D30: 665.00 | E30: 0.00 | F30: 665.00
A31: =ROW() -> 31 | B31: 21305 | C31: 扶贫 | D31: 50.00 | E31: 0.00 | F31: 50.00
A32: =ROW() -> 32 | B32: 2130599 | C32: 其他扶贫支出 | D32: 50.00 | E32: 0.00 | F32: 50.00
A33: =ROW() -> 33 | B33: 21308 | C33: 普惠金融发展支出 | D33: 10.40 | E33: 0.00 | F33: 10.40
A34: =ROW() -> 34 | B34: 2130803 | C34: 农业保险保费补贴 | D34: 10.40 | E34: 0.00 | F34: 10.40
A35: =ROW() -> 35 | B35: 221 | C35: 住房保障支出 | D35: 25.46 | E35: 25.46 | F35: 0.00
A36: =ROW() -> 36 | B36: 22102 | C36: 住房改革支出 | D36: 25.46 | E36: 25.46 | F36: 0.00
A37: =ROW() -> 37 | B37: 2210201 | C37: 住房公积金 | D37: 25.46 | E37: 25.46 | F37: 0.00

Sheet 附表-6
A1: 部门预算一般公共预算财政拨款基本支出表 | B1: ="" ->  | C1: ="" ->  | D1: ="" ->  | E1: ="" ->  | F1: ="" -> 
A2: 部门编码及名称：[111]农村工作服务中心 | B2: ="" ->  | C2: 预算年度：2019 | D2: ="" ->  | E2: 预算年度：2019 | F2: 金额单位：万元
A3: 序号 | B3: 科目 | C3: ="" ->  | D3: 基本支出 | E3: 基本支出 | F3: 项目支出
A4: 栏次 | B4: 经济分类科目编码 | C4: 科目名称 | D4: 合计 | E4: 人员经费 | F4: 公用经费
A5: 栏次 | B5: 1 | C5: 2 | D5: 3 | E5: 4 | F5: 5
A6: =ROW() -> 6 | C6: 合计 | D6: 600.57 | E6: 537.59 | F6: 62.98
A7: =ROW() -> 7 | B7: 301 | C7: 工资福利支出 | D7: 476.22 | E7: 476.22 | F7: 0.00
A8: =ROW() -> 8 | B8: 30101 | C8: 基本工资 | D8: 91.56 | E8: 91.56 | F8: 0.00
A9: =ROW() -> 9 | B9: 30102 | C9: 津贴补贴★ | D9: 107.41 | E9: 107.41 | F9: 0.00
A10: =ROW() -> 10 | B10: 30103 | C10: 奖金 | D10: 0.29 | E10: 0.29 | F10: 0.00
A11: =ROW() -> 11 | B11: 30107 | C11: 绩效工资 | D11: 125.66 | E11: 125.66 | F11: 0.00
A12: =ROW() -> 12 | B12: 30108 | C12: 机关事业单位基本养老保险缴费★ | D12: 42.43 | E12: 42.43 | F12: 0.00
A13: =ROW() -> 13 | B13: 30109 | C13: 职业年金缴费★ | D13: 16.99 | E13: 16.99 | F13: 0.00
A14: =ROW() -> 14 | B14: 30110 | C14: 城镇职工基本医疗保险缴费 | D14: 31.83 | E14: 31.83 | F14: 0.00
A15: =ROW() -> 15 | B15: 30112 | C15: 其他社会保障缴费★ | D15: 4.02 | E15: 4.02 | F15: 0.00
A16: =ROW() -> 16 | B16: 30113 | C16: 住房公积金 | D16: 25.46 | E16: 25.46 | F16: 0.00
A17: =ROW() -> 17 | B17: 30199 | C17: 其他工资福利支出 | D17: 30.57 | E17: 30.57 | F17: 0.00
A18: =ROW() -> 18 | B18: 302 | C18: 商品和服务支出 | D18: 62.98 | E18: 0.00 | F18: 62.98
A19: =ROW() -> 19 | B19: 30201 | C19: 办公费 | D19: 4.50 | E19: 0.00 | F19: 4.50
A20: =ROW() -> 20 | B20: 30205 | C20: 水费 | D20: 2.00 | E20: 0.00 | F20: 2.00
A21: =ROW() -> 21 | B21: 30206 | C21: 电费 | D21: 6.50 | E21: 0.00 | F21: 6.50
A22: =ROW() -> 22 | B22: 30207 | C22: 邮电费 | D22: 1.70 | E22: 0.00 | F22: 1.70
A23: =ROW() -> 23 | B23: 30208 | C23: 取暖费 | D23: 32.00 | E23: 0.00 | F23: 32.00
A24: =ROW() -> 24 | B24: 30211 | C24: 差旅费 | D24: 1.50 | E24: 0.00 | F24: 1.50
A25: =ROW() -> 25 | B25: 30214 | C25: 租赁费 | D25: 5.42 | E25: 0.00 | F25: 5.42
A26: =ROW() -> 26 | B26: 30215 | C26: 会议费 | D26: 0.60 | E26: 0.00 | F26: 0.60
A27: =ROW() -> 27 | B27: 30216 | C27: 培训费 | D27: 0.70 | E27: 0.00 | F27: 0.70
A28: =ROW() -> 28 | B28: 30217 | C28: 公务接待费 | D28: 0.50 | E28: 0.00 | F28: 0.50
A29: =ROW() -> 29 | B29: 30228 | C29: 工会经费 | D29: 4.26 | E29: 0.00 | F29: 4.26
A30: =ROW() -> 30 | B30: 30231 | C30: 公务用车运行维护费★ | D30: 3.00 | E30: 0.00 | F30: 3.00
A31: =ROW() -> 31 | B31: 30299 | C31: 其他商品和服务支出 | D31: 0.30 | E31: 0.00 | F31: 0.30
A32: =ROW() -> 32 | B32: 303 | C32: 对个人和家庭的补助 | D32: 61.37 | E32: 61.37 | F32: 0.00
A33: =ROW() -> 33 | B33: 30302 | C33: 退休费 | D33: 47.86 | E33: 47.86 | F33: 0.00
A34: =ROW() -> 34 | B34: 30305 | C34: 生活补助 | D34: 1.80 | E34: 1.80 | F34: 0.00
A35: =ROW() -> 35 | B35: 30307 | C35: 医疗费补助 | D35: 11.56 | E35: 11.56 | F35: 0.00
A36: =ROW() -> 36 | B36: 30309 | C36: 奖励金 | D36: 0.15 | E36: 0.15 | F36: 0.00

Sheet 附表-7
A1: 部门预算政府基金预算财政拨款支出表 | B1: ="" ->  | C1: ="" ->  | D1: ="" ->  | E1: ="" ->  | F1: ="" -> 
A2: 部门编码及名称：[111]农村工作服务中心 | B2: ="" ->  | C2: 预算年度：2019 | D2: ="" ->  | E2: 预算年度：2019 | F2: 金额单位：万元
A3: 序号 | B3: 科目 | C3: ="" ->  | D3: 合计 | E3: 基本支出 | F3: 项目支出
A4: 栏次 | B4: 功能分类科目编码 | C4: 科目名称 | D4: ="" ->  | E4: ="" ->  | F4: 其他来源收入
A5: 栏次 | B5: 1 | C5: 2 | D5: 3 | E5: 4 | F5: 5
A6: =ROW() -> 6 | C6: 合计 | D6: =E6+F6 -> 86.28 | E6: 0.00 | F6: =F7 -> 86.28
B7: 208 | C7: 社会保障和就业支出 | D7: =D8 -> 86.28 | F7: =F8 -> 86.28
B8: 20822 | C8: 大中型水库移民后期扶持基金支出 | D8: =F8 -> 86.28 | F8: =F9+F10 -> 86.28
B9: 2082201 | C9: 移民补助 | D9: =F9 -> 53.76 | F9: 53.76
B10: 2082202 | C10: 基础设施建设和经济发展 | D10: =F10 -> 32.52 | F10: 32.52

Sheet 附表-8
A1: 部门预算国有资本经营预算财政拨款支出表
A2: 单位：万元
A3: 科目 | C3: 合计 | D3: 基本支出 | E3: 项目支出
A4: 功能分类科目编码 | B4: 科目名称
A7: 合计
A16: 备注：此表无数据

Sheet 附表-9
A1: 部门预算财政拨款“三公”经费支出表 | B1: ="" ->  | C1: ="" ->  | D1: ="" ->  | E1: ="" ->  | F1: ="" ->  | G1: ="" -> 
A2: 部门编码及名称：[111]农村工作服务中心 | B2: ="" ->  | C2: ="" ->  | D2: 预算年度：2019 | E2: ="" ->  | F2: 预算年度：2019 | G2: 金额单位：万元
A3: 序号 | B3: 项 目 | C3: 资金来源 | D3: ="" ->  | E3: ="" ->  | F3: ="" ->  | G3: ="" -> 
A4: 栏次 | B4: ="" ->  | C4: 合计 | D4: 一般公共预算财政拨款 | E4: 政府性基金财政拨款 | F4: 国有资本经营预算财政拨款 | G4: 财政专户核拨资金
A5: 栏次 | B5: 1 | C5: 2 | D5: 3 | E5: 4 | F5: 5 | G5: 6
A6: =ROW() -> 6 | B6: 合计 | C6: =C7 -> 3.50 | D6: =D7 -> 3.50
A7: =ROW() -> 7 | B7: “三公”经费小计 | C7: 3.50 | D7: 3.50 | E7: 0.00 | F7: 0.00 | G7: 0.00
A8: =ROW() -> 8 | B8: 一、因公出国（境）费 | C8: 0.00 | D8: 0.00 | E8: 0.00 | F8: 0.00 | G8: 0.00
A9: =ROW() -> 9 | B9: 其中：教学科研人员因公出国（境）费
A10: =ROW() -> 10 | B10: 其他因公出国（境）费
A11: =ROW() -> 11 | B11: 二、公务用车购置及运维费 | C11: 3.00 | D11: 3.00 | E11: 0.00 | F11: 0.00 | G11: 0.00
A12: =ROW() -> 12 | B12: 其中：公务用车购置费
A13: =ROW() -> 13 | B13: 公务用车运行维护费 | C13: 3.00 | D13: 3.00 | E13: 0.00 | F13: 0.00 | G13: 0.00
A14: =ROW() -> 14 | B14: 三、公务接待费 | C14: 0.50 | D14: 0.50 | E14: 0.00 | F14: 0.00 | G14: 0.00
